[Event "Titled Tuesday Blitz January 17 Late 2023"]
[White "Yuan, Qingyu"]
[Black "Haszon, David"]
[WhiteFideId "8609772"]
[BlackFideId "733610"]
[WhiteElo "2373"]
[BlackElo "2264"]
[Result "1-0"]
[Round "01"]
[TimeControl "180+2"]
[Date "2023.01.17"]
[WhiteClock "0:00:14"]
[BlackClock "0:00:12"]

1. e4 {[%clk 0:03:00]}  c5 {[%clk 0:02:52]} 2. Nf3 {[%clk 0:03:00]}  d6 {[%clk 0:02:52]} 3. Bb5+ {[%clk 0:03:00]}  Nd7 {[%clk 0:02:51]} 4. c3 {[%clk 0:03:00]}  Nf6 {[%clk 0:02:48]} 5. Qe2 {[%clk 0:03:00]}  e5 {[%clk 0:02:44]} 6. d4 {[%clk 0:02:52]}  Qc7 {[%clk 0:02:36]} 7. O-O {[%clk 0:02:35]}  a6 {[%clk 0:02:33]} 8. Bd3 {[%clk 0:02:30]}  Be7 {[%clk 0:02:30]} 9. a4 {[%clk 0:02:29]}  O-O {[%clk 0:02:21]} 10. Nbd2 {[%clk 0:02:24]}  Re8 {[%clk 0:02:18]} 11. Re1 {[%clk 0:02:23]}  Bf8 {[%clk 0:02:18]} 12. Nf1 {[%clk 0:02:09]}  b6 {[%clk 0:02:07]} 13. Ng3 {[%clk 0:02:06]}  g6 {[%clk 0:01:59]} 14. h3 {[%clk 0:01:54]}  Bg7 {[%clk 0:01:57]} 15. d5 {[%clk 0:01:50]}  Nf8 {[%clk 0:01:43]} 16. Be3 {[%clk 0:01:46]}  h6 {[%clk 0:01:30]} 17. b4 {[%clk 0:01:41]}  Kh7 {[%clk 0:01:09]} 18. a5 {[%clk 0:01:38]}  b5 {[%clk 0:00:59]} 19. c4 {[%clk 0:01:28]}  bxc4 {[%clk 0:00:46]} 20. Bxc4 {[%clk 0:01:28]}  cxb4 {[%clk 0:00:39]} 21. Reb1 {[%clk 0:01:25]}  g5 {[%clk 0:00:37]} 22. Nd2 {[%clk 0:01:09]}  Ng6 {[%clk 0:00:37]} 23. Rxb4 {[%clk 0:01:09]}  Nf4 {[%clk 0:00:37]} 24. Qd1 {[%clk 0:01:09]}  Rg8 {[%clk 0:00:27]} 25. Rb6 {[%clk 0:00:58]}  Qd7 {[%clk 0:00:26]} 26. Nf5 {[%clk 0:00:57]}  Ne8 {[%clk 0:00:21]} 27. Kh2 {[%clk 0:00:47]}  Qd8 {[%clk 0:00:20]} 28. g3 {[%clk 0:00:45]}  Bxf5 {[%clk 0:00:20]} 29. exf5 {[%clk 0:00:44]}  Qd7 {[%clk 0:00:17]} 30. Qb1 {[%clk 0:00:37]}  Nf6 {[%clk 0:00:17]} 31. Rb7 {[%clk 0:00:36]}  Qe8 {[%clk 0:00:18]} 32. gxf4 {[%clk 0:00:32]}  gxf4 {[%clk 0:00:19]} 33. Bb6 {[%clk 0:00:31]}  e4 {[%clk 0:00:18]} 34. Ra3 {[%clk 0:00:29]}  Qe5 {[%clk 0:00:18]} 35. Qa1 {[%clk 0:00:27]}  f3+ {[%clk 0:00:18]} 36. Qxe5 {[%clk 0:00:27]}  Ng4+ {[%clk 0:00:15]} 37. hxg4 {[%clk 0:00:25]}  Bxe5+ {[%clk 0:00:16]} 38. Kh3 {[%clk 0:00:25]}  Rg7 {[%clk 0:00:15]} 39. Nxe4 {[%clk 0:00:25]}  Rag8 {[%clk 0:00:15]} 40. Rxf3 {[%clk 0:00:23]}  Rxg4 {[%clk 0:00:16]} 41. Rxf7+ {[%clk 0:00:23]}  Kh8 {[%clk 0:00:16]} 42. Nf6 {[%clk 0:00:13]}  Bxf6 {[%clk 0:00:14]} 43. Rxf6 {[%clk 0:00:14]}  Rg1 {[%clk 0:00:12]} 44. Rxh6+ {[%clk 0:00:14]}  Kg7 {[%clk 0:00:12]} 45. Rg6+ {[%clk 0:00:14]} 1-0


[Site "https://www.chess.com"]

[Event "Titled Tuesday Blitz January 17 Late 2023"]
[White "AidenRchess"]
[Black "Dimitrov, Atanas"]
[BlackFideId "2901315"]
[WhiteElo "2443"]
[BlackElo "2269"]
[Result "1/2-1/2"]
[Round "01"]
[TimeControl "180+2"]
[Date "2023.01.17"]
[WhiteClock "0:00:18"]
[BlackClock "0:00:02"]

1. e4 {[%clk 0:03:00]}  c5 {[%clk 0:02:54]} 2. Nf3 {[%clk 0:03:00]}  d6 {[%clk 0:02:54]} 3. Bb5+ {[%clk 0:03:00]}  Bd7 {[%clk 0:02:54]} 4. Bxd7+ {[%clk 0:03:00]}  Nxd7 {[%clk 0:02:55]} 5. O-O {[%clk 0:02:59]}  Ngf6 {[%clk 0:02:56]} 6. Qe2 {[%clk 0:03:00]}  g6 {[%clk 0:02:54]} 7. b3 {[%clk 0:02:59]}  Bg7 {[%clk 0:02:54]} 8. Bb2 {[%clk 0:03:00]}  O-O {[%clk 0:02:55]} 9. c4 {[%clk 0:03:00]}  Rc8 {[%clk 0:02:49]} 10. d4 {[%clk 0:02:57]}  cxd4 {[%clk 0:02:48]} 11. Nxd4 {[%clk 0:02:58]}  a6 {[%clk 0:02:47]} 12. Nc3 {[%clk 0:02:55]}  Ne5 {[%clk 0:02:36]} 13. Rad1 {[%clk 0:02:54]}  Qb6 {[%clk 0:02:33]} 14. Kh1 {[%clk 0:02:52]}  e6 {[%clk 0:02:30]} 15. f4 {[%clk 0:02:51]}  Nc6 {[%clk 0:02:28]} 16. Nf3 {[%clk 0:02:50]}  Rfd8 {[%clk 0:02:27]} 17. f5 {[%clk 0:02:44]}  Ng4 {[%clk 0:02:21]} 18. Na4 {[%clk 0:02:35]}  Qe3 {[%clk 0:02:21]} 19. Qc2 {[%clk 0:02:10]}  Nb4 {[%clk 0:02:16]} 20. Qd2 {[%clk 0:02:05]}  Qxd2 {[%clk 0:02:10]} 21. Rxd2 {[%clk 0:02:05]}  b5 {[%clk 0:01:46]} 22. Bxg7 {[%clk 0:01:57]}  Kxg7 {[%clk 0:01:45]} 23. Nb2 {[%clk 0:01:55]}  exf5 {[%clk 0:01:34]} 24. exf5 {[%clk 0:01:54]}  Ne3 {[%clk 0:01:34]} 25. Re1 {[%clk 0:01:48]}  Nxf5 {[%clk 0:01:33]} 26. a3 {[%clk 0:01:47]}  Nc6 {[%clk 0:01:31]} 27. g4 {[%clk 0:01:47]}  Nh6 {[%clk 0:01:24]} 28. h3 {[%clk 0:01:42]}  Ng8 {[%clk 0:01:23]} 29. Red1 {[%clk 0:01:41]}  Na5 {[%clk 0:01:17]} 30. Rxd6 {[%clk 0:01:36]}  Rxd6 {[%clk 0:01:15]} 31. Rxd6 {[%clk 0:01:35]}  Nxb3 {[%clk 0:01:09]} 32. cxb5 {[%clk 0:01:33]}  axb5 {[%clk 0:01:10]} 33. Nd3 {[%clk 0:01:28]}  Rc3 {[%clk 0:00:53]} 34. Nfe5 {[%clk 0:01:26]}  Nc5 {[%clk 0:00:44]} 35. Nxc5 {[%clk 0:01:22]}  Rxc5 {[%clk 0:00:45]} 36. Nc6 {[%clk 0:01:18]}  Nf6 {[%clk 0:00:42]} 37. Nd4 {[%clk 0:01:14]}  Ne4 {[%clk 0:00:39]} 38. Rb6 {[%clk 0:01:11]}  Rc3 {[%clk 0:00:34]} 39. Kg2 {[%clk 0:01:05]}  Rg3+ {[%clk 0:00:31]} 40. Kh2 {[%clk 0:01:04]}  Rxa3 {[%clk 0:00:31]} 41. Rxb5 {[%clk 0:01:01]}  h6 {[%clk 0:00:31]} 42. Rb7 {[%clk 0:01:01]}  Ng5 {[%clk 0:00:30]} 43. Rb3 {[%clk 0:00:54]}  Rxb3 {[%clk 0:00:25]} 44. Nxb3 {[%clk 0:00:54]}  Kf6 {[%clk 0:00:26]} 45. Nd2 {[%clk 0:00:53]}  Ke5 {[%clk 0:00:25]} 46. Nf1 {[%clk 0:00:50]}  Kf4 {[%clk 0:00:24]} 47. Ng3 {[%clk 0:00:48]}  Nf3+ {[%clk 0:00:25]} 48. Kg2 {[%clk 0:00:48]}  Nd4 {[%clk 0:00:23]} 49. Kf2 {[%clk 0:00:47]}  Kg5 {[%clk 0:00:20]} 50. Ne4+ {[%clk 0:00:45]}  Kf4 {[%clk 0:00:19]} 51. Ng3 {[%clk 0:00:44]}  Ne6 {[%clk 0:00:19]} 52. Ne2+ {[%clk 0:00:44]}  Ke5 {[%clk 0:00:18]} 53. Kg3 {[%clk 0:00:43]}  f5 {[%clk 0:00:14]} 54. gxf5 {[%clk 0:00:42]}  Kxf5 {[%clk 0:00:15]} 55. Nc3 {[%clk 0:00:39]}  Ng5 {[%clk 0:00:14]} 56. Ne2 {[%clk 0:00:36]}  Ne4+ {[%clk 0:00:14]} 57. Kf3 {[%clk 0:00:35]}  Nd2+ {[%clk 0:00:15]} 58. Kg3 {[%clk 0:00:35]}  Nb3 {[%clk 0:00:14]} 59. Ng1 {[%clk 0:00:30]}  Nc5 {[%clk 0:00:13]} 60. Ne2 {[%clk 0:00:29]}  g5 {[%clk 0:00:12]} 61. Nd4+ {[%clk 0:00:28]}  Kg6 {[%clk 0:00:12]} 62. Ne2 {[%clk 0:00:25]}  Ne4+ {[%clk 0:00:12]} 63. Kf3 {[%clk 0:00:24]}  Nf6 {[%clk 0:00:12]} 64. Nd4 {[%clk 0:00:23]}  Nd5 {[%clk 0:00:10]} 65. Kg3 {[%clk 0:00:21]}  Kf6 {[%clk 0:00:09]} 66. h4 {[%clk 0:00:21]}  Ke5 {[%clk 0:00:06]} 67. hxg5 {[%clk 0:00:20]}  h5 {[%clk 0:00:06]} 68. Kh4 {[%clk 0:00:19]}  Nf4 {[%clk 0:00:06]} 69. Ne2 {[%clk 0:00:18]}  Nxe2 {[%clk 0:00:04]} 70. Kxh5 {[%clk 0:00:18]}  Kf5 {[%clk 0:00:05]} 71. Kh6 {[%clk 0:00:17]}  Nf4 {[%clk 0:00:06]} 72. Kh7 {[%clk 0:00:18]}  Kxg5 {[%clk 0:00:02]} 1/2-1/2


[Site "https://www.chess.com"]

[Event "Titled Tuesday Blitz January 17 Late 2023"]
[White "Gurevich, Dmitry"]
[Black "Nazari, Arad"]
[WhiteFideId "2000407"]
[BlackFideId "12577324"]
[WhiteElo "2393"]
[BlackElo "2367"]
[Result "0-1"]
[Round "01"]
[TimeControl "180+2"]
[Date "2023.01.17"]
[WhiteClock "0:01:57"]
[BlackClock "0:01:41"]

1. d4 {[%clk 0:02:59]}  Nf6 {[%clk 0:02:56]} 2. c4 {[%clk 0:02:57]}  g6 {[%clk 0:02:51]} 3. Nc3 {[%clk 0:02:56]}  d5 {[%clk 0:02:50]} 4. Nf3 {[%clk 0:02:55]}  Bg7 {[%clk 0:02:50]} 5. cxd5 {[%clk 0:02:55]}  Nxd5 {[%clk 0:02:51]} 6. Bd2 {[%clk 0:02:55]}  Nb6 {[%clk 0:02:50]} 7. Bg5 {[%clk 0:02:54]}  c5 {[%clk 0:02:24]} 8. dxc5 {[%clk 0:02:45]}  Bxc3+ {[%clk 0:02:23]} 9. bxc3 {[%clk 0:02:44]}  Qxd1+ {[%clk 0:02:23]} 10. Rxd1 {[%clk 0:02:42]}  Na4 {[%clk 0:02:24]} 11. e4 {[%clk 0:02:34]}  Nxc3 {[%clk 0:02:13]} 12. Rd4 {[%clk 0:02:32]}  Nc6 {[%clk 0:02:06]} 13. Rc4 {[%clk 0:02:28]}  Nxa2 {[%clk 0:02:06]} 14. Bd2 {[%clk 0:02:22]}  a5 {[%clk 0:01:52]} 15. Ra4 {[%clk 0:02:18]}  Nab4 {[%clk 0:01:51]} 16. Bb5 {[%clk 0:02:17]}  Bd7 {[%clk 0:01:47]} 17. Bxb4 {[%clk 0:02:11]}  Nxb4 {[%clk 0:01:48]} 18. Bxd7+ {[%clk 0:02:10]}  Kxd7 {[%clk 0:01:49]} 19. Ne5+ {[%clk 0:02:10]}  Ke6 {[%clk 0:01:49]} 20. Nc4 {[%clk 0:02:08]}  Nd3+ {[%clk 0:01:45]} 21. Ke2 {[%clk 0:02:07]}  Nxc5 {[%clk 0:01:46]} 22. Rxa5 {[%clk 0:02:07]}  Rxa5 {[%clk 0:01:46]} 23. Nxa5 {[%clk 0:02:07]}  Ra8 {[%clk 0:01:47]} 24. Nc4 {[%clk 0:02:04]}  Nxe4 {[%clk 0:01:46]} 25. f3 {[%clk 0:02:00]}  Ra2+ {[%clk 0:01:44]} 26. Ke3 {[%clk 0:01:59]}  Nd6 {[%clk 0:01:40]} 27. g4 {[%clk 0:01:57]}  Nxc4+ {[%clk 0:01:41]} 0-1


[Site "https://www.chess.com"]

[Event "Titled Tuesday Blitz January 17 Late 2023"]
[White "Tanenbaum, Zachary"]
[Black "Remolar Gallen, Jose"]
[WhiteFideId "2060850"]
[BlackFideId "2215187"]
[WhiteElo "2261"]
[BlackElo "2285"]
[Result "1-0"]
[Round "01"]
[TimeControl "180+2"]
[Date "2023.01.17"]
[WhiteClock "0:00:31"]
[BlackClock "0:00:13"]

1. e4 {[%clk 0:02:59]}  c5 {[%clk 0:02:58]} 2. Nf3 {[%clk 0:02:58]}  d6 {[%clk 0:02:59]} 3. d4 {[%clk 0:02:59]}  cxd4 {[%clk 0:03:00]} 4. Nxd4 {[%clk 0:02:59]}  Nf6 {[%clk 0:03:00]} 5. Nc3 {[%clk 0:02:59]}  a6 {[%clk 0:03:01]} 6. Be3 {[%clk 0:02:59]}  e5 {[%clk 0:03:01]} 7. Nb3 {[%clk 0:03:00]}  Be6 {[%clk 0:03:01]} 8. h3 {[%clk 0:03:00]}  h5 {[%clk 0:02:59]} 9. Bd3 {[%clk 0:02:59]}  Be7 {[%clk 0:02:59]} 10. Qf3 {[%clk 0:02:58]}  Nbd7 {[%clk 0:02:55]} 11. O-O-O {[%clk 0:02:57]}  Qc7 {[%clk 0:02:54]} 12. Nd5 {[%clk 0:02:52]}  Bxd5 {[%clk 0:02:53]} 13. exd5 {[%clk 0:02:53]}  a5 {[%clk 0:02:46]} 14. a3 {[%clk 0:02:27]}  Rc8 {[%clk 0:02:18]} 15. g4 {[%clk 0:02:08]}  e4 {[%clk 0:02:09]} 16. Bxe4 {[%clk 0:02:00]}  Ne5 {[%clk 0:02:09]} 17. Qf4 {[%clk 0:01:54]}  Qc4 {[%clk 0:02:02]} 18. Bf5 {[%clk 0:01:46]}  Qxb3 {[%clk 0:01:36]} 19. Bxc8 {[%clk 0:01:44]}  Qa2 {[%clk 0:01:32]} 20. Qa4+ {[%clk 0:01:08]}  Kf8 {[%clk 0:01:13]} 21. Qb3 {[%clk 0:01:05]}  Qxb3 {[%clk 0:00:45]} 22. cxb3 {[%clk 0:01:06]}  hxg4 {[%clk 0:00:29]} 23. hxg4 {[%clk 0:01:05]}  Rxh1 {[%clk 0:00:28]} 24. Rxh1 {[%clk 0:01:05]}  g6 {[%clk 0:00:29]} 25. Bxb7 {[%clk 0:00:47]}  Nfxg4 {[%clk 0:00:28]} 26. Bd4 {[%clk 0:00:44]}  Bg5+ {[%clk 0:00:26]} 27. Kb1 {[%clk 0:00:44]}  Nf3 {[%clk 0:00:24]} 28. Rh8+ {[%clk 0:00:34]}  Ke7 {[%clk 0:00:24]} 29. Bb6 {[%clk 0:00:32]}  Bf6 {[%clk 0:00:13]} 30. Bd8+ {[%clk 0:00:31]} 1-0


[Site "https://www.chess.com"]

[Event "Titled Tuesday Blitz January 17 Late 2023"]
[White "Zeman, Matyas"]
[Black "Leitao, Rafael"]
[WhiteFideId "364398"]
[BlackFideId "2101246"]
[WhiteElo "2296"]
[BlackElo "2592"]
[Result "0-1"]
[Round "01"]
[TimeControl "180+2"]
[Date "2023.01.17"]
[WhiteClock "0:00:18"]
[BlackClock "0:00:55"]

1. d4 {[%clk 0:03:00]}  Nf6 {[%clk 0:02:55]} 2. Nf3 {[%clk 0:03:00]}  e6 {[%clk 0:02:54]} 3. Bf4 {[%clk 0:02:59]}  c5 {[%clk 0:02:54]} 4. e3 {[%clk 0:02:59]}  d5 {[%clk 0:02:54]} 5. Nbd2 {[%clk 0:02:59]}  Bd6 {[%clk 0:02:53]} 6. Bxd6 {[%clk 0:02:57]}  Qxd6 {[%clk 0:02:53]} 7. dxc5 {[%clk 0:02:58]}  Qxc5 {[%clk 0:02:53]} 8. c4 {[%clk 0:02:56]}  Nc6 {[%clk 0:02:50]} 9. Rc1 {[%clk 0:02:55]}  d4 {[%clk 0:02:41]} 10. exd4 {[%clk 0:02:43]}  Nxd4 {[%clk 0:02:40]} 11. Nxd4 {[%clk 0:02:04]}  Qxd4 {[%clk 0:02:39]} 12. Nf3 {[%clk 0:02:04]}  Qxb2 {[%clk 0:02:30]} 13. Bd3 {[%clk 0:01:57]}  Qb4+ {[%clk 0:02:25]} 14. Kf1 {[%clk 0:01:45]}  O-O {[%clk 0:02:21]} 15. Ne5 {[%clk 0:01:43]}  Qc5 {[%clk 0:02:13]} 16. Qe2 {[%clk 0:01:24]}  Rd8 {[%clk 0:01:53]} 17. g4 {[%clk 0:01:21]}  Nd7 {[%clk 0:01:41]} 18. Nf3 {[%clk 0:01:21]}  Nf8 {[%clk 0:01:36]} 19. h4 {[%clk 0:01:15]}  Bd7 {[%clk 0:01:35]} 20. Ng5 {[%clk 0:01:04]}  Bc6 {[%clk 0:01:26]} 21. Rh3 {[%clk 0:01:05]}  Rd7 {[%clk 0:01:12]} 22. Ne4 {[%clk 0:00:32]}  Bxe4 {[%clk 0:01:11]} 23. Qxe4 {[%clk 0:00:33]}  Rad8 {[%clk 0:01:08]} 24. Rd1 {[%clk 0:00:28]}  b6 {[%clk 0:01:07]} 25. g5 {[%clk 0:00:25]}  Rd4 {[%clk 0:01:02]} 26. Qe3 {[%clk 0:00:22]}  Qd6 {[%clk 0:00:57]} 27. Kg2 {[%clk 0:00:20]}  e5 {[%clk 0:00:55]} 28. f3 {[%clk 0:00:18]}  Rxd3 {[%clk 0:00:55]} 0-1


[Site "https://www.chess.com"]

[Event "Titled Tuesday Blitz January 17 Late 2023"]
[White "Timmermans, Mark"]
[Black "Qiao, Cindy"]
[WhiteFideId "1026399"]
[BlackFideId "2620243"]
[WhiteElo "2392"]
[BlackElo "1785"]
[Result "1-0"]
[Round "01"]
[TimeControl "180+2"]
[Date "2023.01.17"]
[WhiteClock "0:01:42"]
[BlackClock "0:00:41"]

1. e4 {[%clk 0:02:52]}  c5 {[%clk 0:02:59]} 2. Nf3 {[%clk 0:02:52]}  d6 {[%clk 0:02:58]} 3. d4 {[%clk 0:02:52]}  cxd4 {[%clk 0:02:59]} 4. Nxd4 {[%clk 0:02:52]}  Nf6 {[%clk 0:03:00]} 5. Nc3 {[%clk 0:02:52]}  g6 {[%clk 0:03:00]} 6. Be3 {[%clk 0:02:50]}  Bg7 {[%clk 0:03:01]} 7. f3 {[%clk 0:02:50]}  Nc6 {[%clk 0:03:01]} 8. Qd2 {[%clk 0:02:51]}  O-O {[%clk 0:03:01]} 9. O-O-O {[%clk 0:02:51]}  d5 {[%clk 0:03:01]} 10. Kb1 {[%clk 0:02:39]}  Nxd4 {[%clk 0:02:26]} 11. e5 {[%clk 0:02:39]}  Nf5 {[%clk 0:01:45]} 12. exf6 {[%clk 0:02:39]}  exf6 {[%clk 0:01:45]} 13. Bc5 {[%clk 0:02:36]}  Re8 {[%clk 0:01:41]} 14. Nxd5 {[%clk 0:02:36]}  Be6 {[%clk 0:01:40]} 15. Bb5 {[%clk 0:02:32]}  Rf8 {[%clk 0:01:29]} 16. Bxf8 {[%clk 0:02:18]}  Qxf8 {[%clk 0:01:30]} 17. Nc7 {[%clk 0:02:14]}  Rc8 {[%clk 0:01:12]} 18. Nxe6 {[%clk 0:02:14]}  fxe6 {[%clk 0:01:13]} 19. Qd7 {[%clk 0:02:14]}  e5 {[%clk 0:01:05]} 20. Qxb7 {[%clk 0:02:01]}  Nd4 {[%clk 0:01:00]} 21. Ba4 {[%clk 0:01:47]}  Qc5 {[%clk 0:00:58]} 22. Bb3+ {[%clk 0:01:47]}  Kh8 {[%clk 0:00:58]} 23. c3 {[%clk 0:01:45]}  Nxb3 {[%clk 0:00:45]} 24. axb3 {[%clk 0:01:44]}  Rc7 {[%clk 0:00:42]} 25. Rd8+ {[%clk 0:01:42]}  Bf8 {[%clk 0:00:41]} 26. Rxf8+ {[%clk 0:01:42]} 1-0


[Site "https://www.chess.com"]

[Event "Titled Tuesday Blitz January 17 Late 2023"]
[White "Vlassov, Nikolai"]
[Black "Novikova, Galina"]
[WhiteFideId "4103360"]
[BlackFideId "4157095"]
[WhiteElo "2283"]
[BlackElo "2073"]
[Result "1/2-1/2"]
[Round "01"]
[TimeControl "180+2"]
[Date "2023.01.17"]
[WhiteClock "0:00:14"]
[BlackClock "0:00:37"]

1. e4 {[%clk 0:02:57]}  e6 {[%clk 0:02:56]} 2. c4 {[%clk 0:02:56]}  d5 {[%clk 0:02:57]} 3. cxd5 {[%clk 0:02:56]}  exd5 {[%clk 0:02:57]} 4. Qb3 {[%clk 0:02:55]}  Nf6 {[%clk 0:02:58]} 5. e5 {[%clk 0:02:55]}  Ne4 {[%clk 0:02:58]} 6. d4 {[%clk 0:02:51]}  Be7 {[%clk 0:02:46]} 7. Nc3 {[%clk 0:02:45]}  Nxc3 {[%clk 0:02:39]} 8. bxc3 {[%clk 0:02:45]}  O-O {[%clk 0:02:40]} 9. Bd3 {[%clk 0:02:44]}  c5 {[%clk 0:02:39]} 10. Qc2 {[%clk 0:02:42]}  h6 {[%clk 0:02:38]} 11. f4 {[%clk 0:02:40]}  Nc6 {[%clk 0:02:33]} 12. Nf3 {[%clk 0:02:38]}  cxd4 {[%clk 0:02:33]} 13. Nxd4 {[%clk 0:02:30]}  Nxd4 {[%clk 0:02:28]} 14. cxd4 {[%clk 0:02:30]}  Bb4+ {[%clk 0:02:28]} 15. Kf2 {[%clk 0:02:26]}  Be6 {[%clk 0:02:25]} 16. Be3 {[%clk 0:02:23]}  Rc8 {[%clk 0:02:20]} 17. Qe2 {[%clk 0:02:23]}  Qd7 {[%clk 0:02:14]} 18. Rhc1 {[%clk 0:02:09]}  Bf5 {[%clk 0:02:13]} 19. Bxf5 {[%clk 0:01:58]}  Qxf5 {[%clk 0:02:12]} 20. Qb5 {[%clk 0:01:57]}  Bc3 {[%clk 0:01:57]} 21. Rab1 {[%clk 0:01:53]}  Bxd4 {[%clk 0:01:54]} 22. g3 {[%clk 0:00:59]}  Bxe3+ {[%clk 0:01:53]} 23. Kxe3 {[%clk 0:00:59]}  Qe4+ {[%clk 0:01:54]} 24. Kf2 {[%clk 0:00:59]}  Rc2+ {[%clk 0:01:49]} 25. Rxc2 {[%clk 0:00:56]}  Qxc2+ {[%clk 0:01:50]} 26. Kg1 {[%clk 0:00:53]}  b6 {[%clk 0:01:46]} 27. Rb2 {[%clk 0:00:50]}  Qc1+ {[%clk 0:01:45]} 28. Kg2 {[%clk 0:00:50]}  Rc8 {[%clk 0:01:43]} 29. Rf2 {[%clk 0:00:48]}  d4 {[%clk 0:01:40]} 30. Qd7 {[%clk 0:00:40]}  Qc6+ {[%clk 0:01:37]} 31. Qxc6 {[%clk 0:00:40]}  Rxc6 {[%clk 0:01:38]} 32. Rd2 {[%clk 0:00:40]}  Rc4 {[%clk 0:01:39]} 33. Kf3 {[%clk 0:00:40]}  Kf8 {[%clk 0:01:35]} 34. Ke4 {[%clk 0:00:40]}  Ra4 {[%clk 0:01:35]} 35. f5 {[%clk 0:00:33]}  Ke7 {[%clk 0:01:36]} 36. g4 {[%clk 0:00:26]}  b5 {[%clk 0:01:16]} 37. h4 {[%clk 0:00:25]}  Rc4 {[%clk 0:01:06]} 38. Rxd4 {[%clk 0:00:21]}  Rc2 {[%clk 0:01:06]} 39. a4 {[%clk 0:00:19]}  a6 {[%clk 0:00:58]} 40. axb5 {[%clk 0:00:19]}  axb5 {[%clk 0:00:59]} 41. Rb4 {[%clk 0:00:19]}  Rh2 {[%clk 0:00:53]} 42. h5 {[%clk 0:00:16]}  Rg2 {[%clk 0:00:53]} 43. Kf3 {[%clk 0:00:16]}  Rg1 {[%clk 0:00:53]} 44. Rxb5 {[%clk 0:00:16]}  Rf1+ {[%clk 0:00:53]} 45. Ke2 {[%clk 0:00:16]}  Rf4 {[%clk 0:00:53]} 46. Rb7+ {[%clk 0:00:15]}  Ke8 {[%clk 0:00:53]} 47. Ke3 {[%clk 0:00:09]}  Rxg4 {[%clk 0:00:53]} 48. f6 {[%clk 0:00:08]}  gxf6 {[%clk 0:00:51]} 49. exf6 {[%clk 0:00:09]}  Rh4 {[%clk 0:00:52]} 50. Re7+ {[%clk 0:00:09]}  Kf8 {[%clk 0:00:52]} 51. Rd7 {[%clk 0:00:08]}  Ke8 {[%clk 0:00:51]} 52. Re7+ {[%clk 0:00:08]}  Kf8 {[%clk 0:00:51]} 53. Ra7 {[%clk 0:00:08]}  Kg8 {[%clk 0:00:29]} 54. Ra8+ {[%clk 0:00:06]}  Kh7 {[%clk 0:00:30]} 55. Rf8 {[%clk 0:00:06]}  Rxh5 {[%clk 0:00:30]} 56. Rxf7+ {[%clk 0:00:06]}  Kg6 {[%clk 0:00:31]} 57. Rf8 {[%clk 0:00:07]}  Rf5 {[%clk 0:00:27]} 58. Ke4 {[%clk 0:00:06]}  Rxf6 {[%clk 0:00:27]} 59. Rxf6+ {[%clk 0:00:06]}  Kxf6 {[%clk 0:00:28]} 60. Kf4 {[%clk 0:00:07]}  Kg6 {[%clk 0:00:29]} 61. Kg4 {[%clk 0:00:07]}  h5+ {[%clk 0:00:30]} 62. Kh4 {[%clk 0:00:08]}  Kh6 {[%clk 0:00:31]} 63. Kh3 {[%clk 0:00:08]}  Kg5 {[%clk 0:00:32]} 64. Kg3 {[%clk 0:00:08]}  h4+ {[%clk 0:00:32]} 65. Kh3 {[%clk 0:00:09]}  Kh5 {[%clk 0:00:33]} 66. Kh2 {[%clk 0:00:10]}  Kg4 {[%clk 0:00:33]} 67. Kg2 {[%clk 0:00:11]}  h3+ {[%clk 0:00:34]} 68. Kh2 {[%clk 0:00:11]}  Kg5 {[%clk 0:00:35]} 69. Kh1 {[%clk 0:00:12]}  Kf6 {[%clk 0:00:35]} 70. Kg1 {[%clk 0:00:13]}  Ke7 {[%clk 0:00:36]} 71. Kh2 {[%clk 0:00:13]}  Kd7 {[%clk 0:00:37]} 72. Kxh3 {[%clk 0:00:14]} 1/2-1/2


[Site "https://www.chess.com"]